fUSD/lending_fUSD_20250313
["ID","MTS","AMOUNT","RATE_DAILY","PERIOD"]
[356077294,1741884646717,-500.0,0.00028469,18]
[356077295,1741884646727,-500.0,0.00028469,18]
[356077296,1741884646736,-500.0,0.00028469,18]
[356077297,1741884646745,-500.0,0.00028469,18]
[356077298,1741884646755,-500.0,0.00028469,18]
[356077299,1741884646765,-500.0,0.00028469,18]
[356077300,1741884646775,-500.0,0.00028469,18]
[356077301,1741884646785,-500.0,0.00028469,18]
[356077302,1741884646794,-500.0,0.00028469,18]
[356077303,1741884646803,-500.0,0.00028469,18]
[356077304,1741884646813,-648.66,0.00028469,18]
[356077305,1741884646822,-502.13196846,0.00028469,18]
[356077306,1741884646832,-500.0,0.00028469,18]
[356077307,1741884646842,-500.0,0.00028469,18]
[356077308,1741884646852,-500.0,0.00028469,18]
[356077309,1741884646862,-500.0,0.00028469,18]
[356077310,1741884646875,-500.0,0.00028469,18]
[356077311,1741884646887,-500.0,0.00028469,18]
[356077312,1741884646899,-500.0,0.00028469,18]
[356077313,1741884646911,-500.0,0.00028469,18]
[356077314,1741884646923,-500.0,0.00028469,18]
[356077315,1741884646936,-500.0,0.00028469,18]
[356077316,1741884646947,-500.0,0.00028469,18]
[356077317,1741884646958,-500.0,0.00028469,18]
[356077318,1741884646968,-500.0,0.00028469,18]
[356077319,1741884646978,-500.0,0.00028469,18]
[356077320,1741884646990,-335.04,0.00028469,18]
[356077321,1741884647000,-500.0,0.00028469,18]
[356077322,1741884647011,-560.4118045,0.00028469,18]
[356077323,1741884647022,-500.0,0.00028469,18]
[356077324,1741884647033,-500.0,0.00028469,18]
[356077325,1741884647044,-500.0,0.00028469,18]
[356077326,1741884647055,-500.0,0.00028469,18]
[356077327,1741884647066,-507.44874437,0.00028469,18]
[356077328,1741884647077,-500.0,0.00028469,18]
[356077329,1741884647088,-500.0,0.00028469,18]
[356077330,1741884647101,-527.6,0.00028469,18]
[356077331,1741884647112,-500.0,0.00028469,18]
[356077332,1741884647127,-500.0,0.00028469,18]
[356077333,1741884647140,-519.63719562,0.00028469,18]
[356077334,1741884647152,-500.0,0.00028469,18]
[356077335,1741884647163,-624.76,0.00028469,18]
[356077336,1741884647174,-500.0,0.00028469,18]
[356077337,1741884647188,-500.0,0.00028469,18]
[356077338,1741884647198,-500.0,0.00028469,18]
[356077339,1741884647210,-500.0,0.00028469,18]
[356077340,1741884647221,-500.0,0.00028469,18]
[356077341,1741884647231,-500.0,0.00028469,18]
[356077342,1741884647241,-500.0,0.00028469,18]
[356077343,1741884647251,-500.0,0.00028469,18]
[356077344,1741884647262,-500.0,0.00028469,18]
[356077345,1741884647273,-500.0,0.00028469,18]
[356077346,1741884647283,-500.0,0.00028469,18]
[356077347,1741884647295,-430.72,0.00028469,18]
[356077348,1741884647305,-590.0,0.00028469,18]
[356077349,1741884647316,-500.0,0.00028469,18]
[356077350,1741884647327,-500.0,0.00028469,18]
[356077351,1741884647338,-504.6,0.00028469,18]
[356077352,1741884647349,-500.0,0.00028469,18]
[356077353,1741884647360,-605.76,0.00028469,18]
[356077354,1741884647370,-500.0,0.00028469,18]
[356077355,1741884647382,-500.0,0.00028469,18]
[356077356,1741884647393,-306.99,0.00028469,18]
[356077357,1741884647404,-500.0,0.00028469,18]
[356077358,1741884647415,-348.0,0.00028469,18]
[356077359,1741884647427,-500.0,0.00028469,18]
[356077360,1741884647438,-500.0,0.00028469,18]
[356077361,1741884647448,-500.0,0.00028469,18]
[356077362,1741884647460,-500.0,0.00028469,18]
[356077363,1741884647471,-487.88,0.00028469,18]
[356077364,1741884647482,-500.0,0.00028469,18]
[356077365,1741884647493,-500.0,0.00028469,18]
[356077366,1741884647504,-500.0,0.00028469,18]
[356077367,1741884647514,-502.10475326,0.00028469,18]
[356077368,1741884647525,-519.83631683,0.00028469,18]
[356077369,1741884647536,-500.0,0.00028469,18]
[356077370,1741884647548,-249.84487457,0.00028469,18]
[356077371,1741884647557,-616.87,0.00028469,18]
[356077372,1741884647568,-500.0,0.00028469,18]
[356077373,1741884647579,-500.0,0.00028469,18]
[356077374,1741884647590,-500.0,0.00028469,18]
[356077375,1741884647601,-500.0,0.00028469,18]
[356077376,1741884647613,-500.0,0.00028469,18]
[356077377,1741884647625,-500.0,0.00028469,18]
[356077378,1741884647636,-500.0,0.00028469,18]
[356077379,1741884647647,-500.0,0.00028469,18]
[356077380,1741884647657,-500.0,0.00028469,18]
[356077381,1741884647668,-445.59,0.00028469,18]
[356077382,1741884647679,-500.0,0.00028469,18]
[356077383,1741884647690,-500.0,0.00028469,18]
[356077384,1741884647701,-500.0,0.00028469,18]
[356077385,1741884647711,-500.0,0.00028469,18]
[356077386,1741884647721,-500.0,0.00028469,18]
[356077387,1741884647731,-235.24,0.00028469,18]
[356077388,1741884647740,-336.03395073,0.00028469,18]
[356077389,1741884647751,-500.0,0.00028469,18]
[356077390,1741884647761,-500.0,0.00028469,18]
[356077391,1741884647774,-500.0,0.00028469,18]
[356077392,1741884647785,-500.0,0.00028469,18]
[356077393,1741884647797,-500.0,0.00028469,18]
[356077394,1741884647809,-500.0,0.00028469,18]
[356077395,1741884647819,-500.0,0.00028469,18]
[356077396,1741884647828,-500.0,0.00028469,18]
[356077397,1741884647838,-500.0,0.00028469,18]
[356077398,1741884647848,-500.0,0.00028469,18]
[356077399,1741884647857,-500.0,0.00028469,18]
[356077400,1741884647874,-500.0,0.00028469,18]
[356077401,1741884647884,-500.0,0.00028469,18]
[356077402,1741884647894,-500.0,0.00028469,18]
[356077403,1741884647904,-500.0,0.00028469,18]
[356077404,1741884647915,-500.0,0.00028469,18]
[356077405,1741884647926,-504.98656025,0.00028469,18]
[356077406,1741884647938,-500.0,0.00028469,18]
[356077407,1741884647949,-500.0,0.00028469,18]
[356077408,1741884647960,-600.59,0.00028469,18]
[356077409,1741884647971,-522.25882497,0.00028469,18]
[356077410,1741884647980,-500.0,0.00028469,18]
[356077411,1741884647991,-500.0,0.00028469,18]
[356077412,1741884648001,-500.0,0.00028469,18]
[356077413,1741884648011,-500.0,0.00028469,18]
[356077414,1741884648021,-500.0,0.00028469,18]
[356077415,1741884648032,-500.0,0.00028469,18]
[356077416,1741884648043,-472.31,0.00028469,18]
[356077417,1741884648053,-500.0,0.00028469,18]
[356077418,1741884648064,-500.0,0.00028469,18]
[356077419,1741884648074,-500.0,0.00028469,18]
[356077420,1741884648085,-160.03,0.00028469,18]
[356077421,1741884648095,-500.0,0.00028469,18]
[356077422,1741884648105,-500.0,0.00028469,18]
[356077423,1741884648116,-500.0,0.00028469,18]
[356077424,1741884648129,-500.0,0.00028469,18]
[356077425,1741884648139,-500.0,0.00028469,18]
[356077426,1741884648149,-500.0,0.00028469,18]
[356077427,1741884648159,-500.0,0.00028469,18]
[356077428,1741884648169,-500.0,0.00028469,18]
[356077429,1741884648180,-500.51718075,0.00028469,18]
[356077430,1741884648191,-500.0,0.00028469,18]
[356077431,1741884648201,-500.0,0.00028469,18]
[356077432,1741884648212,-500.0,0.00028469,18]
[356077433,1741884648223,-159.29,0.00028469,18]
[356077434,1741884648234,-173.69,0.00028469,18]
[356077435,1741884648244,-500.0,0.00028469,18]
[356077436,1741884648255,-500.0,0.00028469,18]
[356077437,1741884648265,-213.65,0.00028469,18]
[356077438,1741884648276,-585.84,0.00028469,18]
[356077439,1741884648286,-565.99,0.00028469,18]
[356077440,1741884648296,-500.0,0.00028469,18]
[356077441,1741884648306,-500.0,0.00028469,18]
[356077442,1741884648317,-451.49392404,0.00028469,2]
[356077443,1741884648328,-500.0,0.00028469,2]
[356077444,1741884648339,-166.9285919,0.00028469,2]
[356077445,1741884648349,-500.0,0.00028469,2]
[356077446,1741884648360,-500.0,0.00028469,2]
[356077447,1741884648372,-500.0,0.00028469,2]
[356077448,1741884648382,-537.91060895,0.00028469,2]
[356077449,1741884648394,-500.0,0.00028469,18]
[356077450,1741884648406,-500.0,0.00028469,18]
[356077451,1741884648417,-573.9,0.00028469,18]
[356077452,1741884648428,-500.0,0.00028469,18]
[356077453,1741884648439,-500.14990137,0.00028469,18]
[356077454,1741884648450,-500.0,0.00028469,18]
[356077455,1741884648460,-281.59,0.00028469,18]
[356077456,1741884648471,-500.0,0.00028469,18]
[356077457,1741884648481,-501.28058608,0.00028469,18]
[356077458,1741884648492,-500.0,0.00028469,18]
[356077459,1741884648503,-500.0,0.00028469,18]
[356077460,1741884648513,-622.05273028,0.00028469,18]
[356077461,1741884648524,-3279.733063,0.00028469,18]
[356077462,1741884648536,-500.0,0.00028469,18]
[356077463,1741884648547,-500.0,0.00028469,18]
[356077464,1741884648559,-500.0,0.00028469,18]
[356077465,1741884648570,-500.0,0.00028469,18]
[356077466,1741884648581,-300.84,0.00028469,18]
[356077467,1741884648591,-500.0,0.00028469,18]
[356077468,1741884648602,-500.0,0.00028469,18]
[356077469,1741884648613,-2990.99648608,0.00028469,2]
[356077470,1741884648624,-500.89103769,0.00028469,2]
[356077471,1741884648634,-516.7227187,0.00028469,18]
[356077472,1741884648645,-500.0,0.00028469,18]
[356077473,1741884648656,-150.0,0.00028469,18]
[356077474,1741884648667,-500.0,0.00028469,18]
[356077475,1741884648677,-599.54,0.00028469,18]
[356077476,1741884648688,-500.0,0.00028469,18]
[356077477,1741884648699,-5000.0,0.00028469,18]
[356077478,1741884648709,-635.28757172,0.00028469,18]
[356077479,1741884648719,-348.37,0.00028469,18]
[356077480,1741884648730,-503.9916347,0.00028469,18]
[356077481,1741884648741,-593.46,0.00028469,18]
[356077482,1741884648751,-500.89640271,0.00028469,18]
[356077483,1741884648761,-500.0,0.00028469,18]
[356077484,1741884648774,-635.73,0.00028469,18]
[356077485,1741884648785,-500.0,0.00028469,18]
[356077486,1741884648795,-482.18,0.00028469,18]
[356077487,1741884648805,-500.0,0.00028469,18]
[356077488,1741884648815,-500.0,0.00028469,18]
[356077489,1741884648825,-502.53762954,0.00028469,18]
[356077490,1741884648835,-500.0,0.00028469,18]
[356077491,1741884648845,-500.0,0.00028469,18]
[356077492,1741884648855,-500.0,0.00028469,18]
[356077493,1741884648868,-347.34,0.00028469,18]
[356077494,1741884648878,-500.0,0.00028469,18]
[356077495,1741884648889,-150.0,0.00028469,2]
[356077496,1741884648899,-500.0,0.00028469,18]
[356077497,1741884648910,-500.0,0.00028469,18]
[356077498,1741884648920,-495.35160122,0.00028469,18]
[356077499,1741884648931,-501.41354843,0.00028469,18]
[356077500,1741884648942,-523.02,0.00028469,18]
[356077501,1741884648953,-151.25,0.00028469,18]
[356077502,1741884648963,-500.0,0.00028469,18]
[356077503,1741884648973,-500.0,0.00028469,18]
[356077504,1741884648984,-500.0,0.00028469,18]
[356077505,1741884648995,-500.96683915,0.00028469,18]
[356077506,1741884649005,-500.0,0.00028469,18]
[356077507,1741884649016,-487.83,0.00028469,18]
[356077508,1741884649026,-500.0,0.00028469,18]
[356077509,1741884649036,-477.52,0.00028469,18]
[356077510,1741884649046,-500.0,0.00028469,18]
[356077511,1741884649057,-543.44,0.00028469,18]
[356077512,1741884649067,-500.0,0.00028469,18]
[356077513,1741884649077,-500.0,0.00028469,18]
[356077514,1741884649087,-500.0,0.00028469,18]
[356077515,1741884649098,-500.0,0.00028469,18]
[356077516,1741884649108,-500.0,0.00028469,18]
[356077517,1741884649119,-156.53,0.00028469,18]
[356077518,1741884649134,-500.0,0.00028469,18]
[356077519,1741884649144,-353.41,0.00028469,18]
[356077520,1741884649155,-554.12,0.00028469,18]
[356077521,1741884649167,-378.33,0.00028469,18]
[356077522,1741884649177,-565.97288028,0.00028469,18]
[356077523,1741884649188,-500.0,0.00028469,18]
[356077524,1741884649199,-152.08,0.00028469,18]
[356077525,1741884649210,-454.25,0.00028469,18]
[356077526,1741884649220,-177.28,0.00028469,18]
[356077527,1741884649231,-500.0,0.00028469,18]
[356077528,1741884649241,-500.0,0.00028469,18]
[356077529,1741884649252,-500.0,0.00028469,18]
[356077530,1741884649262,-290.68,0.00028469,18]
[356077531,1741884649272,-500.0,0.00028469,18]
[356077532,1741884649283,-500.0,0.00028469,18]
[356077533,1741884649294,-500.0,0.00028469,18]
[356077534,1741884649304,-500.0,0.00028469,18]
[356077535,1741884649314,-366.31,0.00028469,18]
[356077536,1741884649324,-270.62,0.00028469,18]
[356077537,1741884649334,-500.0,0.00028469,18]
[356077538,1741884649345,-500.0,0.00028469,18]
[356077539,1741884649355,-546.81,0.00028469,18]
[356077540,1741884649366,-367.75,0.00028469,18]
[356077541,1741884649377,-500.0,0.00028469,18]
[356077542,1741884649387,-500.0,0.00028469,18]
[356077543,1741884649399,-432.87,0.00028469,18]
[356077544,1741884649409,-500.0,0.00028469,18]
[356077545,1741884649420,-500.0,0.00028469,18]
[356077546,1741884649432,-500.0,0.00028469,18]
[356077547,1741884649684,-219.88276353,0.00028469,18]
[356077548,1741884649695,-500.0,0.00028469,18]
[356077549,1741884649705,-388.86,0.00028469,18]
[356077550,1741884649715,-500.0,0.00028469,18]
[356077551,1741884649724,-500.0,0.00028469,18]
[356077552,1741884649733,-500.0,0.00028469,18]
[356077553,1741884649742,-500.0,0.00028469,18]
[356077554,1741884649751,-500.0,0.00028469,18]
[356077555,1741884649761,-501.59770495,0.00028469,18]
[356077556,1741884649771,-159.18,0.00028469,18]
[356077557,1741884649780,-505.26595598,0.00028469,18]
[356077558,1741884649790,-500.0,0.00028469,18]
[356077559,1741884649799,-500.0,0.00028469,18]
[356077560,1741884649809,-500.0,0.00028469,18]
[356077561,1741884649818,-500.0,0.00028469,18]
[356077562,1741884649828,-645.79,0.00028469,18]
[356077563,1741884649837,-238.69,0.00028469,18]
[356077564,1741884649846,-500.0,0.00028469,18]
[356077565,1741884649855,-500.0,0.00028469,18]
[356077566,1741884649873,-500.0,0.00028469,18]
[356077567,1741884649883,-513.71,0.00028469,18]
[356077568,1741884649895,-500.0,0.00028469,18]
[356077569,1741884649904,-437.65,0.00028469,18]
[356077570,1741884649913,-500.0,0.00028469,18]
[356077571,1741884649923,-500.0,0.00028469,18]
[356077572,1741884649932,-179.21,0.00028469,18]
[356077573,1741884649942,-500.0,0.00028469,18]
[356077574,1741884649951,-255.0,0.00028469,18]
[356077575,1741884649961,-250.99,0.00028469,18]
[356077576,1741884649970,-500.0,0.00028469,18]
[356077577,1741884649979,-500.0,0.00028469,18]
[356077578,1741884649988,-500.0,0.00028469,18]
[356077579,1741884649997,-500.0,0.00028469,18]
[356077580,1741884650006,-298.12,0.00028469,18]
[356077581,1741884650016,-500.0,0.00028469,18]
[356077582,1741884650025,-500.0,0.00028469,18]
[356077583,1741884650034,-598.52,0.00028469,18]
[356077584,1741884650043,-500.0,0.00028469,18]
[356077585,1741884650053,-500.0,0.00028469,18]
[356077586,1741884650062,-439.09,0.00028469,18]
[356077587,1741884650071,-500.0,0.00028469,18]
[356077588,1741884650080,-500.0,0.00028469,18]
[356077589,1741884650089,-500.0,0.00028469,18]
[356077590,1741884650098,-541.77,0.00028469,18]
[356077591,1741884650107,-639.62,0.00028469,18]
[356077592,1741884650117,-500.0,0.00028469,18]
[356077593,1741884650128,-535.18,0.00028469,18]
[356077594,1741884650136,-464.3,0.00028469,18]
[356077595,1741884650146,-500.0,0.00028469,18]
[356077596,1741884650155,-500.0,0.00028469,18]
[356077597,1741884650163,-500.0,0.00028469,18]
[356077598,1741884650174,-500.0,0.00028469,18]
[356077599,1741884650185,-397.87,0.00028469,18]
[356077600,1741884650194,-500.0,0.00028469,18]
[356077601,1741884650205,-500.0,0.00028469,18]
[356077602,1741884650214,-500.0,0.00028469,18]
[356077603,1741884650223,-345.69,0.00028469,18]
[356077604,1741884650232,-500.0,0.00028469,18]
[356077605,1741884650241,-497.22,0.00028469,18]
[356077606,1741884650250,-500.0,0.00028469,18]
[356077607,1741884650259,-500.0,0.00028469,18]
[356077608,1741884650269,-502.27475348,0.00028469,18]
[356077609,1741884650278,-500.0,0.00028469,18]
[356077610,1741884650287,-500.0,0.00028469,18]
[356077611,1741884650297,-500.0,0.00028469,18]
[356077612,1741884650306,-500.0,0.00028469,18]
[356077613,1741884650315,-500.0,0.00028469,18]
[356077614,1741884650325,-500.0,0.00028469,18]
[356077615,1741884650334,-415.26,0.00028469,18]
[356077616,1741884650343,-500.0,0.00028469,18]
[356077617,1741884650352,-4094.11,0.00028469,18]
[356077618,1741884650361,-4094.11,0.00028469,18]
[356077619,1741884650370,-579.33992457,0.00028469,18]
[356077620,1741884650381,-616.17,0.00028469,18]
[356077621,1741884650390,-500.0,0.00028469,18]
[356077622,1741884650399,-500.0,0.00028469,18]
[356077623,1741884650409,-603.27,0.00028469,18]
[356077624,1741884650418,-500.0,0.00028469,18]
[356077625,1741884650427,-361.35,0.00028469,18]
[356077626,1741884650438,-500.0,0.00028469,18]
[356077627,1741884650447,-605.48,0.00028469,18]
[356077628,1741884650457,-500.0,0.00028469,18]
[356077629,1741884650466,-547.33760327,0.00028469,18]
[356077630,1741884650475,-492.73,0.00028469,18]
[356077631,1741884650484,-214.81,0.00028469,18]
[356077632,1741884650493,-500.0,0.00028469,18]
[356077633,1741884650503,-500.0,0.00028469,2]
[356077634,1741884650512,-500.0,0.00028469,2]
[356077635,1741884650522,-517.06,0.00028469,18]
[356077636,1741884650531,-504.51,0.00028469,18]
[356077637,1741884650541,-501.22,0.00028469,18]
[356077638,1741884650550,-319.3,0.00028469,18]
[356077639,1741884650559,-623.65,0.00028469,18]
[356077640,1741884650569,-500.0,0.00028469,18]
[356077641,1741884650578,-640.27,0.00028469,18]
[356077642,1741884650587,-302.52,0.00028469,18]
[356077643,1741884650597,-500.0,0.00028469,18]
[356077644,1741884650607,-500.0,0.00028469,18]
[356077645,1741884650616,-151.0,0.00028469,7]
[356077646,1741884650626,-154.4,0.00028469,18]
[356077647,1741884650635,-500.0,0.00028469,2]
[356077648,1741884650644,-500.0,0.00028469,2]
[356077649,1741884650653,-417.97,0.00028469,18]
[356077650,1741884650662,-500.0,0.00028469,18]
[356077651,1741884650672,-500.0,0.00028469,18]
[356077652,1741884650681,-170.06,0.00028469,18]
[356077653,1741884650691,-183.06,0.00028469,18]
[356077654,1741884650701,-500.0,0.00028469,18]
[356077655,1741884650710,-198.36,0.00028469,18]
[356077656,1741884650719,-500.0,0.00028469,18]
[356077657,1741884650728,-500.0,0.00028469,18]
[356077658,1741884650737,-500.0,0.00028469,18]
[356077659,1741884650746,-578.81283054,0.00028469,18]
[356077660,1741884650755,-375.33,0.00028469,18]
[356077661,1741884650765,-150.02,0.00028469,18]
[356077662,1741884650775,-500.0,0.00028469,18]
[356077663,1741884650785,-500.0,0.00028469,18]
[356077664,1741884650795,-500.0,0.00028469,18]
[356077665,1741884650805,-500.0,0.00028469,18]
[356077666,1741884650814,-3623.39627144,0.00028469,3]
[356077667,1741884650824,-500.0,0.0002847,18]
[356077668,1741884650834,-500.0,0.0002847,18]
[356077669,1741884650843,-500.0,0.0002847,18]
[356077670,1741884650853,-500.0,0.0002847,18]
[356077671,1741884650862,-500.0,0.0002847,18]
[356077672,1741884650871,-500.77082456,0.0002847,18]
[356077673,1741884650880,-500.0,0.0002847,18]
[356077674,1741884650890,-518.39,0.0002847,18]
[356077675,1741884650899,-500.30236612,0.0002847,18]
[356077676,1741884650909,-500.0,0.0002847,18]
[356077677,1741884650918,-500.14973108,0.0002847,18]
[356077678,1741884650927,-500.25747168,0.0002847,18]
[356077679,1741884650938,-500.0,0.0002847,18]
[356077680,1741884650948,-571.24,0.0002847,18]
[356077681,1741884650958,-500.0,0.0002847,18]
[356077682,1741884650966,-500.0,0.0002847,18]
[356077683,1741884650976,-500.0,0.0002847,18]
[356077684,1741884650985,-500.36760232,0.0002847,18]
[356077685,1741884650994,-500.0,0.0002847,18]
[356077686,1741884651003,-500.0,0.0002847,18]
[356077687,1741884651017,-500.87521647,0.0002847,18]
[356077688,1741884651026,-500.0,0.0002847,18]
[356077689,1741884651036,-500.0,0.0002847,18]
[356077690,1741884651045,-500.0,0.0002847,18]
[356077691,1741884651054,-500.0,0.0002847,18]
[356077692,1741884651063,-500.0,0.0002847,18]
[356077693,1741884651072,-504.40510929,0.0002847,18]
[356077694,1741884651081,-500.0,0.0002847,18]
[356077695,1741884651090,-500.0,0.0002847,18]
[356077696,1741884651099,-500.0,0.0002847,18]
[356077697,1741884651109,-500.0,0.0002847,18]
[356077698,1741884651120,-500.0,0.0002847,18]
[356077699,1741884651130,-500.0,0.0002847,18]
[356077700,1741884651139,-500.0,0.0002847,18]
[356077701,1741884651148,-500.0,0.0002847,18]
[356077702,1741884651157,-565.82,0.0002847,18]
[356077703,1741884651168,-500.0,0.0002847,18]
[356077704,1741884651177,-500.0,0.0002847,18]
[356077705,1741884651186,-500.73479821,0.0002847,18]
[356077706,1741884651196,-500.0,0.0002847,18]
[356077707,1741884651205,-500.0,0.0002847,18]
[356077708,1741884651214,-500.0,0.0002847,18]
[356077709,1741884651223,-500.0,0.0002847,18]
[356077710,1741884651232,-500.0,0.0002847,18]
[356077711,1741884651241,-500.0,0.0002847,18]
[356077712,1741884651250,-500.0,0.0002847,18]
[356077713,1741884651259,-500.0,0.0002847,18]
[356077714,1741884651268,-500.25777704,0.0002847,18]
[356077715,1741884651277,-500.0,0.0002847,18]
[356077716,1741884651288,-500.0,0.0002847,18]
[356077717,1741884651298,-500.0,0.0002847,18]
[356077718,1741884651307,-500.0,0.0002847,18]
[356077719,1741884651316,-500.0,0.0002847,2]
[356077720,1741884651326,-500.0,0.0002847,18]
[356077721,1741884651335,-501.09290891,0.0002847,18]
[356077722,1741884651344,-500.0,0.0002847,18]
[356077723,1741884651353,-500.13384758,0.0002847,18]
[356077724,1741884651363,-500.0,0.0002847,18]
[356077725,1741884651372,-500.0,0.0002847,18]
[356077726,1741884651382,-500.24054999,0.0002847,18]
[356077727,1741884651391,-500.0,0.0002847,18]
[356077728,1741884651400,-500.0,0.0002847,18]
[356077729,1741884651409,-500.0,0.0002847,18]
[356077730,1741884651418,-500.0,0.0002847,18]
[356077731,1741884651428,-500.67236172,0.0002847,18]
[356077732,1741884651439,-500.0,0.0002847,18]
[356077733,1741884651448,-605.60286497,0.0002847,18]
[356077734,1741884651457,-501.4456858,0.0002847,18]
[356077735,1741884651467,-500.0,0.0002847,18]
[356077736,1741884651476,-559.48,0.0002847,18]
[356077737,1741884651486,-500.0,0.0002847,18]
[356077738,1741884651495,-500.0,0.0002847,18]
[356077739,1741884651505,-500.0,0.0002847,18]
[356077740,1741884651515,-500.39729289,0.0002847,18]
[356077741,1741884651525,-500.0,0.0002847,18]
[356077742,1741884651534,-500.0,0.0002847,18]
[356077743,1741884651545,-500.0,0.0002847,18]
[356077744,1741884651554,-500.0,0.0002847,18]
[356077745,1741884651564,-500.0,0.0002847,18]
[356077746,1741884651574,-500.0,0.0002847,18]
[356077747,1741884651584,-500.0,0.0002847,18]
[356077748,1741884651593,-500.14814634,0.0002847,18]
[356077749,1741884651603,-500.0,0.0002847,18]
[356077750,1741884651612,-494.42786488,0.0002847,18]
[356077751,1741884651622,-500.0,0.0002847,18]
[356077752,1741884651631,-500.0,0.0002847,18]
[356077753,1741884651640,-500.0,0.0002847,18]
[356077754,1741884651650,-500.0,0.0002847,18]
[356077755,1741884651662,-500.0,0.0002847,18]
[356077756,1741884651672,-500.0,0.0002847,18]
[356077757,1741884651685,-500.0,0.0002847,18]
[356077758,1741884651695,-500.0,0.0002847,18]
[356077759,1741884651705,-500.0,0.0002847,18]
[356077760,1741884651714,-500.0,0.0002847,18]
[356077761,1741884651724,-500.0,0.0002847,18]
[356077762,1741884651733,-500.0,0.0002847,18]
[356077763,1741884651744,-500.0,0.0002847,18]
[356077764,1741884651753,-500.0,0.0002847,18]
[356077765,1741884651763,-500.26039975,0.0002847,18]
[356077766,1741884651772,-172.45890636,0.0002847,18]
[356077767,1741884651784,-500.0,0.0002847,18]
[356077768,1741884651793,-500.0,0.0002847,18]
[356077769,1741884651802,-500.0,0.0002847,18]
[356077770,1741884651812,-500.0,0.0002847,18]
[356077771,1741884651821,-500.21849944,0.0002847,18]
[356077772,1741884651830,-500.0,0.0002847,18]
[356077773,1741884651839,-626.06,0.0002847,18]
[356077774,1741884651848,-500.0,0.0002847,18]
[356077775,1741884651857,-500.22263477,0.0002847,18]
[356077776,1741884651866,-500.0,0.0002847,18]
[356077777,1741884651875,-500.0,0.0002847,18]
[356077778,1741884651884,-501.3050015,0.0002847,18]
[356077779,1741884651894,-584.32,0.0002847,18]
[356077780,1741884651903,-503.42915648,0.0002847,18]
[356077781,1741884651912,-500.0,0.0002847,18]
[356077782,1741884651922,-500.0,0.0002847,18]
[356077783,1741884651932,-500.08877946,0.0002847,18]
[356077784,1741884651942,-500.0,0.0002847,18]
[356077785,1741884651951,-500.0,0.0002847,18]
[356077786,1741884651961,-500.0,0.0002847,18]
[356077787,1741884651971,-400.75785927,0.0002847,18]
[356077788,1741884651981,-500.0,0.0002847,18]
[356077789,1741884651990,-500.0,0.0002847,18]
[356077790,1741884652000,-503.21500321,0.0002847,18]
[356077791,1741884652010,-500.0,0.0002847,18]
[356077792,1741884652019,-500.0,0.0002847,18]
[356077793,1741884652029,-501.26271931,0.0002847,18]